Cogmind - Beta 13 @@@ ROGUE MODE // 2024.04.02 @ 20:56:52 Player: U1144KUT Result: Destroyed by Y-45 Defender with Beam Rifle Performance ------------- Evolutions (0) 0 Regions Visited (3) 600 Robots Destroyed (31) 155 Value Destroyed (735) 735 Prototype IDs (0) 0 Alien Tech Used (0) 0 Bonus (-11) -11 TOTAL SCORE: 1479 Bonus ------- High Alert Combat Kills 11 Friendly Fire -22 Cogmind --------- Core Integrity 0/250 Matter 150/300 Energy 125/125 System Corruption 0% Temperature Cool (9) Movement Rolling (110) Location -8/Recycling Parts ------- > --- POWER (1) -------- Light Ion Engine > --- PROPULSION (2) --- Subdweller Monowheel > --- UTILITY (2) ------ Scrap Engine > --- WEAPON (2) ------- Bore Cannon Dirty Datajack > --- INVENTORY (5) ---- Sensor Array Phase Shifter Makeshift Light Armor Plating Rocket Launcher Peak State ------------ > --- POWER ------------ Light Ion Engine > --- PROPULSION ------- Subdweller Monowheel > --- UTILITY ---------- Scrap Engine > --- WEAPON ----------- Bore Cannon Dirty Datajack > --- INVENTORY -------- Sensor Array Phase Shifter Makeshift Light Armor Plating Rocket Launcher [Rating: 31] Favorites ----------- Power Light Ion Engine Engine Light Ion Engine Propulsion Aluminum Leg Treads Light Treads Leg Aluminum Leg Wheel Subdweller Monowheel Utility Hacking Suite Device Scrap Engine Storage Medium Storage Unit Hackware Hacking Suite Weapon Autogun Energy Gun Medium Laser Ballistic Gun Autogun Ballistic Cannon Bore Cannon Launcher Rocket Launcher Special Weapon Mining Laser Special Melee Weapon Dirty Datajack Build | -11 -10 -10 -8 ------- Run | Yrd Mat Sub Rec Slots Evolved . | . . . . Power . | . . . . Propulsion . | . . . . Utility . | . . . . Weapon . | . . . . Parts Attached 38 | 6 17 11 4 Power 5 | 1 2 1 1 Engine 5 | 1 2 1 1 Core . | . . . . Reactor . | . . . . Propulsion 8 | 2 2 3 1 Treads 2 | 2 . . . Leg 2 | . 2 . . Wheel 4 | . . 3 1 Hover . | . . . . Flight . | . . . . Utility 6 | 1 2 2 1 Device 2 | . . 1 1 Storage 3 | 1 1 1 . Processor . | . . . . Hackware 1 | . 1 . . Protection . | . . . . Artifact . | . . . . Weapon 19 | 2 11 5 1 Energy Gun 3 | 1 2 . . Energy Cannon . | . . . . Ballistic Gun 7 | 1 5 1 . Ballistic Cannon 1 | . . 1 . Launcher 3 | . 2 1 . Special Weapon 3 | . 2 1 . Impact Weapon . | . . . . Slashing Weapon . | . . . . Piercing Weapon . | . . . . Special Melee Weapon 2 | . . 1 1 Unidentified Prototypes . | . . . . Parts Lost 1 | . . 1 . Power . | . . . . Propulsion . | . . . . Utility . | . . . . Weapon 1 | . . 1 . Highest Loss Streak 1 | . . 1 . To Critical Strikes . | . . . . Average Slot Usage (%) 92 | . 97 90 71 Engine 13 | . 12 14 14 Treads 2 | . 4 . . Leg 13 | . 23 7 . Wheel 6 | . . 11 14 Device 1 | . . . 13 Storage 12 | . 14 13 . Hackware 12 | . 13 14 . Ballistic Gun 15 | . 23 10 . Ballistic Cannon 1 | . . 1 14 Launcher 1 | . . 1 6 Special Weapon 3 | . 2 5 . Special Melee Weapon 4 | . . 9 7 Naked Turns . | . . . . Heaviest Build 27 | 14 19 27 27 Greatest Support 40 | 40 40 40 20 Greatest Overweight (x) 6 | . . 6 1 Average Overweight (x) . | . . . . Largest Inventory Capacity 10 | 8 10 10 10 Average Capacity 8 | 7 8 9 5 Most Carried 10 | 4 10 10 9 Average Carried 7 | 2 7 9 3 Final Capacity 10 | 8 10 10 5 Final Carried 9 | 4 9 9 4 Scrap Engine Consumption 5 | . . . 5 Class Distribution -------------------- 93% | Mutant 6% | Scavenger-Mutant Dominant Class ---------------- Mutant | -10/Materials Mutant | -10/Subcaves Mutant | -8/Recycling Resources | -11 -10 -10 -8 ----------- Run | Yrd Mat Sub Rec Matter Collected 1133 | 194 506 388 45 Remotely . | . . . . Salvage Created 743 | . 431 273 39 Parts 59 | . 43 10 6 Haulers Intercepted 1 | . 1 . . Recyclers Shooed 1 | . 1 . . Parts Field Recycled . | . . . . Retrieved Matter . | . . . . Parts Self-Destructed 13 | . . 13 . Prevented . | . . . . Kills | -11 -10 -10 -8 ------- Run | Yrd Mat Sub Rec Combat Hostiles Destroyed 20 | . 12 7 1 Guns 14 | . 7 7 . Cannons 1 | . . . 1 AOE 5 | . 5 . . Classes Destroyed 10 | . 7 2 1 Worker 1 | . 1 . . Builder 3 | . 2 . 1 Hauler 1 | . 1 . . Operator 2 | . 2 . . Turret 2 | . . 2 . Watcher 2 | . 2 . . Swarmer 7 | . 5 2 . Grunt 8 | . 7 1 . Sentry 1 | . . . 1 Subdweller 4 | . . 4 . Best Kill Streak 5 | . 5 2 2 Combat Bots Only 3 | . 3 2 1 Max Kills in Single Turn 2 | . 2 1 1 Gunslinging . | . . . . Exploded 2 | . 2 . . Melee . | . . . . Uniques/NPCs Destroyed . | . . . . Combat | -11 -10 -10 -8 -------- Run | Yrd Mat Sub Rec Hostile Shots Fired 117 | . 50 52 15 Missed 32 | . 13 17 2 Damage Taken 929 | . 396 341 192 Core 260 | . 117 83 60 Absorbed by Shields . | . . . . Regen/Repaired (Parts) 64 | . 64 . . Core Remaining (%) 100 | 100 . . . Volleys Fired 132 | . 68 54 10 Largest 2 | . 2 2 1 Hottest 123 | . 123 100 57 Shots Fired 187 | . 109 68 10 Gun 121 | . 83 38 . Cannon 12 | . . 2 10 Launcher 20 | . 5 15 . Special 34 | . 21 13 . Kinetic 125 | . 75 40 10 Thermal 42 | . 29 13 . Explosive 20 | . 5 15 . Electromagnetic . | . . . . Robot Hit Streak 10 | . 10 8 2 Robot Miss Streak 7 | . 7 3 3 Penetration Max . | . . . . Secondary Targets 1 | . . 1 . Max Gunslinging Chain 1 | . . 1 . Shots Hit Robots 86 | . 53 28 5 Core Hits 50 | . 26 21 3 Critical Kills . | . . . . Critical Parts Destroyed 1 | . . . 1 Critical Strikes 3 | . 1 . 2 Burn 1 | . 1 . . Destroy 2 | . . . 2 Melee Attacks 1 | . . 1 . Impact . | . . . . Slashing . | . . . . Piercing 1 | . . 1 . Sneak Attacks . | . . . . Combat Hostiles . | . . . . Follow-up Attacks . | . . . . Damage Inflicted 1953 | . 1214 605 134 Guns 1110 | . 740 370 . Cannons 134 | . . . 134 Explosions 649 | . 464 185 . Melee 2 | . . 2 . Ramming 10 | . 10 . . Kinetic 1168 | . 664 370 134 Thermal 322 | . 274 48 . Explosive 451 | . 266 185 . Electromagnetic . | . . . . Impact . | . . . . Slashing . | . . . . Piercing 2 | . . 2 . Highest Corruption . | . . . . Average Corruption . | . . . . Corruption Purged . | . . . . Corruption Blocked . | . . . . Overload Shots . | . . . . Overflow Damage 78 | . 78 . . Projectiles . | . . . . Explosions 78 | . 78 . . Melee . | . . . . Knockbacks . | . . . . Impact . | . . . . Kinetic . | . . . . Secondary . | . . . . Self-Inflicted Damage 31 | . 31 . . Shots 1 | . 1 . . Rammed . | . . . . Targets Rammed 3 | . 3 . . Kicked 3 | . 3 . . Crushed . | . . . . Highest Temperature 223 | . 180 12 223 Average Temperature 41 | . 31 9 111 Received Heat Transfer 273 | . 111 81 81 Siege Activations . | . . . . Robots Corrupted . | . . . . Combat Hostiles . | . . . . Parts Fried . | . . . . Impact Corruptions . | . . . . Robots Melted . | . . . . Combat Hostiles . | . . . . Parts Melted 1 | . 1 . . Heat Transferred 496 | . 396 100 . Parts Sabotaged . | . . . . Parts Stolen . | . . . . Parts Stripped . | . . . . Power Chain Reactions . | . . . . Alert | -11 -10 -10 -8 ------- Run | Yrd Mat Sub Rec Peak Influence 414 | . 308 . 414 Initial 364 | . . . 364 Average 140 | . 101 . 389 Maximum Alert Level 2 | . 1 . 2 Low Security (%) 73 | 100 85 . . Level 1 20 | . 14 . 57 Level 2 6 | . . . 42 Level 3 . | . . . . Level 4 . | . . . . Level 5 . | . . . . High Security . | . . . . Max Security . | . . . . Squads Dispatched 3 | . 3 . . Investigation 1 | . 1 . . Extermination . | . . . . Reinforcement 2 | . 2 . . Assault . | . . . . Garrison . | . . . . Intercept . | . . . . Searches Triggered . | . . . . Construction Impeded . | . . . . Haulers Reinforced . | . . . . Active Scanning Responses . | . . . . Cargo Convoy Interrupts . | . . . . Stealth | -11 -10 -10 -8 --------- Run | Yrd Mat Sub Rec Distress Signals 1 | . 1 . . Communications Jammed . | . . . . Distress Signals . | . . . . Times Spotted 71 | . 23 46 2 Peak Tracking Total 6 | . 4 6 1 Tactical Retreats 4 | . . 4 . Traps | -11 -10 -10 -8 ------- Run | Yrd Mat Sub Rec Traps Triggered . | . . . . Indirectly . | . . . . Trap Hack Attempts . | . . . . Triggered . | . . . . Disarmed 7 | . 7 . . Reprogrammed . | . . . . Reused . | . . . . Traps Extracted . | . . . . Installed . | . . . . Triggered . | . . . . Machines | -11 -10 -10 -8 ---------- Run | Yrd Mat Sub Rec Machines Disabled 7 | . 3 4 . Max in Single Turn 2 | . 2 2 . Machines Repaired . | . . . . Machines Dismantled . | . . . . Machines Sabotaged . | . . . . Overloaded Fab Kills . | . . . . Hacking | -11 -10 -10 -8 --------- Run | Yrd Mat Sub Rec Machines Accessed 15 | . 8 1 6 Terminals 9 | . 6 . 3 Fabricators . | . . . . Repair Stations 1 | . 1 . . Recycling Units 4 | . 1 . 3 Scanalyzers . | . . . . Garrison Access . | . . . . Total Hacks 45 | . 24 3 18 Successful 27 | . 14 3 10 Failed 18 | . 10 . 8 Catastrophic 4 | . 2 . 2 Database Lockouts . | . . . . Manual 10 | . 6 1 3 Terminals 29 | . 19 . 10 Fabricators . | . . . . Repair Stations 4 | . 4 . . Recycling Units 9 | . 1 . 8 Scanalyzers . | . . . . Garrison Access . | . . . . Terminal Hacks 17 | . 9 3 5 Record 4 | . . 3 1 Part Schematic 1 | . . . 1 Robot Schematic 1 | . . . 1 Robot Analysis 1 | . 1 . . Level Access Points 1 | . . . 1 Locate Traps 2 | . 2 . . Disarm Traps 2 | . 2 . . Registered Prototypes 1 | . 1 . . Zone Layout 4 | . 3 . 1 Fabricator Hacks . | . . . . Repair Station Hacks 4 | . 4 . . Scan Component 2 | . 2 . . Repair 2 | . 2 . . Recycling Unit Hacks 6 | . 1 . 5 Process 1 | . . . 1 Report Inventory 2 | . . . 2 Retrieve Matter 1 | . . . 1 Retrieve Components 2 | . 1 . 1 Scanalyzer . | . . . . Garrison Access Hacks . | . . . . Unauthorized Hacks . | . . . . Terminals . | . . . . Fabricators . | . . . . Repair Stations . | . . . . Recycling Units . | . . . . Scanalyzers . | . . . . Garrison Access . | . . . . Data Cores Recovered . | . . . . Used . | . . . . Hacking Detections 9 | . 5 . 4 Full Trace Events 3 | . 1 . 2 Feedback Events . | . . . . Feedback Blocked . | . . . . Robot Schematics Acquired 1 | . . . 1 Robots Built . | . . . . Authchips . | . . . . Time . | . . . . Total Robot Build Rating . | . . . . Part Schematics Acquired 1 | . . . 1 Parts Built . | . . . . Authchips . | . . . . Time . | . . . . Total Part Build Rating . | . . . . Parts Repaired 2 | . 2 . . Time 58 | . 58 . . Parts Recycled . | . . . . Recycled Matter 12 | . . . 12 Retrieved Matter 12 | . . . 12 Retrieved Components 10 | . 9 . 1 Parts Scanalyzed . | . . . . Part Schematics Acquired . | . . . . Parts Damaged . | . . . . Bothacking | -11 -10 -10 -8 ------------ Run | Yrd Mat Sub Rec Used RIF Installer . | . . . . Robots Hacked . | . . . . Non-combat . | . . . . Combat . | . . . . Robot Hacks Applied . | . . . . Relay Couplers Released . | . . . . Fabnet Peak Effective % . | . . . . Robots Rewired . | . . . . Allies Hacked . | . . . . Hacks Repelled . | . . . . Allies | -11 -10 -10 -8 -------- Run | Yrd Mat Sub Rec Total Allies . | . . . . Largest Group . | . . . . Highest-Rated Group . | . . . . Highest-Rated Ally . | . . . . Total Orders . | . . . . Ally Attacks . | . . . . Total Damage . | . . . . Kills . | . . . . Allies Corrupted . | . . . . Allies Melted 1 | . . 1 . Intel | -11 -10 -10 -8 ------- Run | Yrd Mat Sub Rec Robot Analysis Total 1 | . 1 . . Derelict Logs Recovered 1 | . . 1 . Drone Launches . | . . . . Drone Recoveries . | . . . . Exploration | -11 -10 -10 -8 ------------- Run | Yrd Mat Sub Rec Turns Passed 3649 | 114 1612 1601 322 Spaces Moved 2358 | 59 798 1248 253 Core 4 | 3 . 1 . Treads 158 | 56 102 . . Legs 1016 | . 696 320 . Wheels 1180 | . . 927 253 Hover . | . . . . Flight . | . . . . Fastest Speed 50 | 50 120 110 110 Average Speed 117 | 154 125 112 110 Slowest Speed 350 | 160 160 350 120 Overloaded Moves . | . . . . Propulsion Burnouts . | . . . . Robots Hopped . | . . . . Cave-ins Triggered . | . . . . Exploration Rate (%) 59 | 5 100 64 68 Regions Visited 3 Branch Regions 2 Pre-discovered Areas . | . . . . Known Exits Taken . | . . . . Unknown Exits Taken 3 | 1 1 1 . Scrap Searched . | . . . . Spaces Dug 18 | . 18 . . Terrain Destroyed 104 | . 59 38 7 Melee . | . . . . Projectile 25 | . 18 . 7 AOE 79 | . 41 38 . Terrain Rammed . | . . . . Walls Destroyed . | . . . . Machines Disabled . | . . . . Actions | -11 -10 -10 -8 --------- Run | Yrd Mat Sub Rec Total 2989 | 79 1270 1353 287 Wait 400 | 11 361 17 11 Move 2355 | 58 797 1247 253 Hop . | . . . . Pick Up 33 | 4 14 12 3 Fast Attach 13 | 6 2 4 1 Attach 3 | . 1 2 . Detach . | . . . . Swap 22 | . 14 5 3 Drop 27 | . 10 11 6 Fire 132 | . 68 54 10 Melee 1 | . . 1 . Ram . | . . . . Kick 3 | . 3 . . Crush . | . . . . Escape Stasis . | . . . . Rewire . | . . . . Trap . | . . . . Miscellaneous . | . . . . Route ------- -11/Scrapyard -10/Materials (discovered 6 exits: [*Mat x3] / [*Min x2] / *Sub) -10/Subcaves (discovered 2 exits: [*Mat] / *Rec) -8/Recycling (discovered 1 exit: *Fac) History --------- Turn | Location | Event 42 | -11/Scrapyard | Discovered new exit (range 14) 115 | -11/Scrapyard | Entered Materials 317 | -10/Materials | Build established: Mutant 428 | -10/Materials | Discovered new exit (range 15) 573 | -10/Materials | Discovered new exit (range 10) 783 | -10/Materials | Discovered new exit (range 8) 923 | -10/Materials | Discovered new exit (range 10) 1137 | -10/Materials | Discovered new exit (range 11) 1237 | -10/Materials | Repaired Autogun 1264 | -10/Materials | Repaired Lgt. Ion Engine 1346 | -10/Materials | Discovered new exit (range 16) 1727 | -10/Materials | Entered Subcaves 1881 | -10/Subcaves | Ambushed by swarm of Subdwellers 2057 | -10/Subcaves | Core integrity fell below 50% 2136 | -10/Subcaves | Discovered new exit (range 11) 2296 | -10/Subcaves | Learned Materials terminal intel 2741 | -10/Subcaves | Visited Clippyterm 3021 | -10/Subcaves | Shifting Twisted Machinery released Sub. Optics 3068 | -10/Subcaves | Shifting Twisted Machinery released Scrap Shield 3205 | -10/Subcaves | Discovered new exit (range 16) 3328 | -10/Subcaves | Entered Recycling 3332 | -8/Recycling | Found Scrap Engine 3414 | -8/Recycling | Identified exit to Factory 3504 | -8/Recycling | Core integrity fell below 20% 3650 | -8/Recycling | Destroyed by Y-45 Defender with Beam Rifle Last Messages --------------- 03506_ U-05 Engineer destroyed. 03506_ Critical hit (Burn: +37). 03508_ HV Slug penetrates Y-45 Defender. 03508_ HV Slug penetrates Wall. 03511_ R-06 Scavenger collects Terrain Scanner. 03512_ HV Slug penetrates Y-45 Defender. 03513_ R-06 Scavenger collects Wheel. 03514_ HV Slug penetrates Y-45 Defender. 03514_ Y-45 Defender destroyed. 03517_ Scrap Engine consumes Imp. Ion Engine. 03517_ Acquired 30 matter. 03518_ Acquired 6 matter. 03521_ R-06 Scavenger collects Hvy. Assault Rifle. 03523_ R-06 Scavenger collects Lgt. Treads. 03526_ Acquired 9 matter. 03594_ Scrap Engine consumes Carbon-fiber Leg. 03596_ Scrap Engine consumes Imp. Hover Unit. 03619_ Scrap Engine consumes Shock Rifle. 03621_ Scrap Engine consumes Broken Shock Rifle. 03648_ Y-45 Defender springs to life. Map ----- +----------------------------------------------------+ | ???# #??????????????# #? | | ???# #??????????????# ## | | ???# #??????????????+ | | ???## ##??????????????#### | | ??### ##?????????????????# | | ??# #?????????????????# | | ??# ##????????????????"" | | ??# #????????????????#"Y | | ??### #????????????????#"" | | ????# #?????????????????## | | ????# #??????????????????# | | ????# ##########?????????# | | ????# # ##????????# | | ????# # #????????# | | ????# # #?????????#+## | | ????# # #????????????#? | | ????# # #?????????????? | | ????# + #?????????????? | | ????# # #?????????????? | | ????# # #?????????????? | | ????# # #????????????? | | ????# ###########????????????? | | ????# #??????????????????????? | | ????# #??????????????????????? | | ????# #??????????????????????? | | ????# @#??????????????????????? | | ????# #??????????????????????? | | ????# +??????????????????????? | | ????#Y #??????????????????????? | | ???? #??????????????????????? | | ???## #??????????????????????? | | ????# < #??????????????????????? | | ????# #??????????????????????? | | ????#####??????????????????????? | | ???????????????????????????????? | | ???????????????????????????????? | | ???????????????????????????????? | | ???????????????????????????????? | | ???????????????????????????????? | | ???????????????????????????????? | | ???????????????????????????????? | | ???????????????????????????????? | | ???????????????????????????????? | | ???????????????????????????????? | | ???????????????????????????????? | | | | | | | | | | | +----------------------------------------------------+ Best States ------------- Heat Dissipation 25 Energy Generation 15 Energy Capacity 250 Matter Stores 300 Matter Capacity 300 Sight Range 21 Terrain Scan Density 10 Evasion (%) 55 Recoil Reduction 2 Offensive Hacking 10 Item Schematics ----------------- Nuclear Core | -8/Recycling | Hacked Robot Schematics ------------------ T-07 Excavator | -8/Recycling | Hacked Fabricated ------------ Nothing Alien Tech Used ----------------- None Achievements -------------- None Challenges ------------ None Game ------ Seed PhasingScanExpander Manual? 0 Play Time 00:52:39 Cumulative 5.7 hours Start 2024.04.02 @ 20:02:16 End 2024.04.02 @ 20:56:52 Sessions 1 Manual Loads 0 Difficulty Rogue Special Mode None Game No. 5 Rogue 3 Adventurer 2 Explorer 0 Win Type - Total 0 Types 0/0/0/0/0/0/0/0/0 Lore% 6 Gallery% 8 Achievement% 10 Wizard Run 0 Options --------- Layout 0 ASCII 0 Keyboard 0 Movement Mouse Keybinds 0 Fullscreen 2 Font 24/Terminus Map View 76x50 Zoom Use 15% Tactical HUD 1 Map Filters NONE Filters NONE Steam 1 RUN: f946358b-f2ee-48b1-9000-e402ba3e172d